[Event "WTCC-50 2018"]
[Site "Radebeul"]
[Date "2018.07.12"]
[Round "6"]
[White "Levin, Felix"]
[Black "Wolf, Volker"]
[Result "1-0"]
[ECO "A04"]
[WhiteElo "2468"]
[BlackElo "2323"]
[Annotator "RC"]
[PlyCount "109"]
[EventDate "2018.07.07"]
[EventType "team-tourn"]
[EventCountry "GER"]
[SourceTitle "playchess.com"]
[Source "ChessBase"]
[SourceQuality "1"]
[TimeControl "40/5400+30:1800+30"]

1. Nf3 {[%emt 0:00:00]} g6 {[%emt 0:00:00]} 2. d4 {[%emt 0:00:00]} Bg7 {[%emt 0:00:07]} 3. g3 {[%emt 0:00:19]} b6 {[%emt 0:06:51]} 4. Bg2 {[%emt 0:01:53]} Bb7 {[%emt 0:00:28]} 5. c4 {[%emt 0:01:04]} e6 {[%emt 0:00:59]} 6. Nc3 {[%emt 0:00:44]} Ne7 {[%emt 0:00:54]} 7. O-O {[%emt 0:18:58]} O-O {[%emt 0:01:15]} 8. Bf4 {[%emt 0:07:03]} h6 {[%emt 0:02:04]} 9. h4 {[%emt 0:03:21]} d5 {[%emt 0:02:49]} 10. cxd5 {[%emt 0:00:24]} Nxd5 {[%emt 0:01:03]} 11. Nxd5 {[%emt 0:00:13]} Bxd5 {[%emt 0:09:25]} 12. Qc1 {[%emt 0:01:24]} Kh7 {[%emt 0:11:35]} 13. Bxc7 {[%emt 0:01:03]} Qe7 {[%emt 0:00:54]} 14. Be5 {[%emt 0:10:07]} Nd7 {[%emt 0:05:50]} 15. Bxg7 {[%emt 0:00:37]} Kxg7 {[%emt 0:00:02]} 16. Qf4 {[%emt 0:02:18]} Rac8 {[%emt 0:03:08]} 17. Rfc1 {[%emt 0:04:37]} Bxf3 {[%emt 0:12:49]} 18. Bxf3 {[%emt 0:07:32]} e5 {[%emt 0:00:52]} 19. dxe5 {[%emt 0:04:04]} Qxe5 {[%emt 0:04:16]} 20. Qxe5+ {[%emt 0:06:41]} Nxe5 {[%emt 0:00:14]} 21. Bb7 {[%emt 0:00:11]} Rcd8 {[%emt 0:02:16]} 22. Rd1 {[%emt 0:04:58]} f5 {[%emt 0:00:55]} 23. Rac1 {[%emt 0:02:10]} Rxd1+ {[%emt 0:06:29]} 24. Rxd1 {[%emt 0:00:01]} Rf7 {[%emt 0:00:16]} 25. Ba6 {[%emt 0:03:03]} Rc7 {[%emt 0:05:04]} 26. Rd2 {[%emt 0:00:31]} Nd7 {[%emt 0:03:23]} 27. Bd3 {[%emt 0:03:52]} Nc5 {[%emt 0:05:25]} 28. Bc2 {[%emt 0:00:23]} h5 {[%emt 0:01:31]} 29. b4 {[%emt 0:03:10]} Nd7 {[%emt 0:00:37]} 30. Bb3 {[%emt 0:00:27]} Nf6 {[%emt 0:00:36]} 31. f3 {[%emt 0:00:17]} Re7 {[%emt 0:02:32]} 32. Kf2 {[%emt 0:00:09]} Nd7 {[%emt 0:01:30]} 33. Rd6 {[%emt 0:00:59]} Nf6 {[%emt 0:01:17]} 34. Ke1 {[%emt 0:03:13]} Ne8 {[%emt 0:01:46]} 35. Rd8 {[%emt 0:02:06]} Nf6 {[%emt 0:00:08]} 36. Kd2 {[%emt 0:00:42]} Ne8 {[%emt 0:03:42]} 37. Bc2 {[%emt 0:01:43]} Nc7 {[%emt 0:01:42]} 38. Bd3 {[%emt 0:00:46]} Ne8 {[%emt 0:02:20]} 39. a4 {[%emt 0:01:29]} Nc7 {[%emt 0:00:38]} 40. Rd6 {[%emt 0:00:57]} Ne8 {[%emt 0:00:20]} 41. Rd8 {[%emt 0:33:04]} Nf6 {[%emt 0:31:03]} 42. a5 {[%emt 0:00:32]} bxa5 {[%emt 0:00:00]} 43. bxa5 {[%emt 0:00:00]} Rc7 {[%emt 0:00:00]} 44. Rd6 {[%emt 0:00:00]} Rc5 {[%emt 0:00:00]} 45. a6 {[%emt 0:00:00]} Re5 {[%emt 0:00:00]} 46. Rd8 {[%emt 0:00:00]} Re7 {[%emt 0:00:00]} 47. Rb8 {[%emt 0:00:00]} Ne8 {[%emt 0:00:00]} 48. Rb7 {[%emt 0:00:00]} Kf6 {[%emt 0:00:00]} 49. Kc3 {[%emt 0:00:00]} Nc7 {[%emt 0:00:00]} 50. Kd4 {[%emt 0:00:00]} Ne6+ {[%emt 0:00:00]} 51. Kd5 {[%emt 0:00:00]} Nd8 {[%emt 0:00:00]} 52. Rxe7 {[%emt 0:00:00]} Kxe7 {[%emt 0:00:00]} 53. e4 {[%emt 0:00:00]} fxe4 {[%emt 0:00:00]} 54. Bxe4 {[%emt 0:00:00]} Kf6 {[%emt 0:00:07]} 55. Kd6 {[%emt 0:00:00]} 1-0

[Event "WTCC-50 2018"]
[Site "Radebeul"]
[Date "2018.07.12"]
[Round "6"]
[White "Arkell, Keith C"]
[Black "Ruether, Rudolf"]
[Result "1-0"]
[ECO "A48"]
[WhiteElo "2406"]
[BlackElo "2118"]
[Annotator "NA"]
[PlyCount "71"]
[EventDate "2018.07.07"]
[EventType "team-tourn"]
[EventCountry "GER"]
[SourceTitle "playchess.com"]
[Source "ChessBase"]
[SourceQuality "1"]
[TimeControl "40/5400+30:1800+30"]

1. d4 {[%emt 0:00:34]} Nf6 {[%emt 0:00:00]} 2. Nf3 {[%emt 0:00:24]} g6 {[%emt 0:00:50]} 3. c4 {[%emt 0:00:07]} Bg7 {[%emt 0:00:10]} 4. g3 {[%emt 0:00:04]} O-O {[%emt 0:00:18]} 5. Bg2 {[%emt 0:00:03]} d6 {[%emt 0:00:35]} 6. O-O {[%emt 0:00:11]} Nbd7 {[%emt 0:01:31]} 7. d5 {[%emt 0:00:15]} a5 {[%emt 0:04:20]} 8. Nc3 {[%emt 0:00:09]} Nc5 {[%emt 0:00:49]} 9. Be3 {[%emt 0:01:54]} Nfe4 {[%emt 0:15:25]} 10. Nxe4 {[%emt 0:00:07]} Nxe4 {[%emt 0:00:06]} 11. Bd4 {[%emt 0:00:07]} Nf6 {[%emt 0:01:31]} 12. Bc3 {[%emt 0:01:46]} Bd7 {[%emt 0:03:07]} 13. h3 {[%emt 0:01:20]} c6 {[%emt 0:02:22]} 14. Nd4 {[%emt 0:01:48]} cxd5 {[%emt 0:05:41]} 15. cxd5 {[%emt 0:00:06]} Qb6 {[%emt 0:00:18]} 16. e4 {[%emt 0:01:19]} a4 {[%emt 0:01:58]} 17. a3 {[%emt 0:03:22]} Rac8 {[%emt 0:01:49]} 18. Qd2 {[%emt 0:03:16]} Rc4 {[%emt 0:04:04]} 19. Rad1 {[%emt 0:00:08]} Ne8 {[%emt 0:09:11]} 20. Rfe1 {[%emt 0:02:43]} Rc8 {[%emt 0:03:49]} 21. Kh2 {[%emt 0:05:19]} Nc7 {[%emt 0:02:46]} 22. f4 {[%emt 0:00:54]} Nb5 {[%emt 0:03:13]} 23. Nxb5 {[%emt 0:00:06]} Qxb5 {[%emt 0:01:13]} 24. e5 {[%emt 0:00:25]} Rfe8 {[%emt 0:04:28]} 25. Re4 {[%emt 0:03:32]} Qb6 {[%emt 0:07:47]} 26. Rb4 {[%emt 0:02:56]} Qc7 {[%emt 0:02:16]} 27. Qe3 {[%emt 0:01:45]} b5 {[%emt 0:02:03]} 28. e6 {[%emt 0:07:42]} fxe6 {[%emt 0:01:07]} 29. Bxg7 {[%emt 0:00:21]} Kxg7 {[%emt 0:01:14]} 30. dxe6 {[%emt 0:00:12]} Bc6 {[%emt 0:00:33]} 31. Rc1 {[%emt 0:02:03]} Qb7 {[%emt 0:08:34]} 32. Qc3+ {[%emt 0:00:12]} Kg8 {[%emt 0:00:08]} 33. Bxc6 {[%emt 0:00:07]} Qb6 {[%emt 0:00:36]} 34. Qf3 {[%emt 0:11:57]} Rc7 {[%emt 0:02:37]} 35. Rc3 {[%emt 0:00:07]} Rec8 {[%emt 0:00:45]} 36. Bxb5 {[%emt 0:02:12]} 1-0

[Event "WTCC-50 2018"]
[Site "Radebeul"]
[Date "2018.07.12"]
[Round "6"]
[White "Casper, Thomas"]
[Black "Hebden, Mark L"]
[Result "1/2-1/2"]
[ECO "C24"]
[WhiteElo "2354"]
[BlackElo "2423"]
[Annotator "NA"]
[PlyCount "70"]
[EventDate "2018.07.07"]
[EventType "team-tourn"]
[EventCountry "GER"]
[SourceTitle "playchess.com"]
[Source "ChessBase"]
[SourceQuality "1"]
[TimeControl "40/5400+30:1800+30"]

1. e4 {[%emt 0:00:13]} e5 {[%emt 0:00:00]} 2. Bc4 {[%emt 0:00:18]} Nf6 {[%emt 0:00:44]} 3. d3 {[%emt 0:00:12]} Nc6 {[%emt 0:00:17]} 4. Nc3 {[%emt 0:02:21]} Na5 {[%emt 0:01:34]} 5. Nge2 {[%emt 0:00:16]} Be7 {[%emt 0:01:29]} 6. O-O {[%emt 0:00:46]} O-O {[%emt 0:00:54]} 7. Ng3 {[%emt 0:06:30]} d6 {[%emt 0:01:01]} 8. Bb3 {[%emt 0:10:30]} Nxb3 {[%emt 0:00:56]} 9. axb3 {[%emt 0:00:08]} c6 {[%emt 0:01:52]} 10. d4 {[%emt 0:07:03]} b5 {[%emt 0:03:05]} 11. dxe5 {[%emt 0:08:45]} dxe5 {[%emt 0:00:28]} 12. Qxd8 {[%emt 0:00:07]} Rxd8 {[%emt 0:02:24]} 13. Be3 {[%emt 0:02:47]} a6 {[%emt 0:03:07]} 14. Rfd1 {[%emt 0:04:37]} Rxd1+ {[%emt 0:02:25]} 15. Rxd1 {[%emt 0:00:17]} Be6 {[%emt 0:03:04]} 16. f3 {[%emt 0:00:55]} g6 {[%emt 0:01:37]} 17. Ra1 {[%emt 0:09:07]} Nd7 {[%emt 0:03:52]} 18. Nge2 {[%emt 0:00:57]} Nc5 {[%emt 0:01:06]} 19. Nc1 {[%emt 0:11:18]} a5 {[%emt 0:14:12]} 20. Kf1 {[%emt 0:01:50]} f6 {[%emt 0:02:35]} 21. Ke2 {[%emt 0:02:54]} Kf7 {[%emt 0:03:50]} 22. Nd3 {[%emt 0:01:39]} Nxd3 {[%emt 0:00:45]} 23. Kxd3 {[%emt 0:00:07]} Ra6 {[%emt 0:12:10]} 24. Bd2 {[%emt 0:05:21]} Bc8 {[%emt 0:08:54]} 25. Nd1 {[%emt 0:04:06]} a4 {[%emt 0:12:09]} 26. bxa4 {[%emt 0:05:22]} bxa4 {[%emt 0:01:27]} 27. c4 {[%emt 0:00:29]} Be6 {[%emt 0:02:30]} 28. b3 {[%emt 0:03:15]} a3 {[%emt 0:02:17]} 29. Be3 {[%emt 0:00:49]} Bb4 {[%emt 0:01:05]} 30. Nc3 {[%emt 0:00:38]} Ra8 {[%emt 0:00:40]} 31. Na4 {[%emt 0:02:11]} f5 {[%emt 0:00:50]} 32. Kc2 {[%emt 0:03:25]} Rd8 {[%emt 0:03:25]} 33. Nc3 {[%emt 0:00:31]} h5 {[%emt 0:02:04]} 34. Bc1 {[%emt 0:00:58]} Bxc3 {[%emt 0:00:34]} 35. Kxc3 {[%emt 0:00:05]} fxe4 1/2-1/2

[Event "WTCC-50 2018"]
[Site "Radebeul"]
[Date "2018.07.12"]
[Round "6"]
[White "Goh, Cheng Hong"]
[Black "Druckenthaner, Andreas"]
[Result "1/2-1/2"]
[ECO "A04"]
[WhiteElo "2323"]
[BlackElo "2296"]
[Annotator "NA"]
[PlyCount "78"]
[EventDate "2018.07.07"]
[EventType "team-tourn"]
[EventCountry "GER"]
[SourceTitle "playchess.com"]
[Source "ChessBase"]
[SourceQuality "1"]
[TimeControl "40/5400+30:1800+30"]

1. Nf3 {[%emt 0:00:00]} Nc6 {[%emt 0:00:00]} 2. d4 {[%emt 0:00:49]} d6 {[%emt 0:00:00]} 3. Bf4 {[%emt 0:00:47]} Nf6 {[%emt 0:00:30]} 4. h3 {[%emt 0:01:08]} g6 {[%emt 0:00:18]} 5. e3 {[%emt 0:00:24]} Bg7 {[%emt 0:00:12]} 6. c3 {[%emt 0:03:49]} O-O {[%emt 0:00:55]} 7. Bc4 {[%emt 0:00:22]} Nd7 {[%emt 0:01:40]} 8. O-O {[%emt 0:01:34]} e5 {[%emt 0:01:56]} 9. Bh2 {[%emt 0:00:42]} Qe7 {[%emt 0:05:21]} 10. a4 {[%emt 0:01:42]} Nf6 {[%emt 0:05:27]} 11. Na3 {[%emt 0:06:01]} Bf5 {[%emt 0:06:02]} 12. Re1 {[%emt 0:06:48]} Rad8 {[%emt 0:06:12]} 13. Rc1 {[%emt 0:05:48]} h5 {[%emt 0:08:00]} 14. Bf1 {[%emt 0:08:37]} Ne4 {[%emt 0:09:25]} 15. Nc4 {[%emt 0:07:39]} g5 {[%emt 0:05:55]} 16. Nfd2 {[%emt 0:07:44]} Nxd2 {[%emt 0:02:55]} 17. Nxd2 {[%emt 0:03:33]} Bg6 {[%emt 0:00:34]} 18. Be2 {[%emt 0:00:58]} h4 {[%emt 0:00:41]} 19. d5 {[%emt 0:00:44]} Nb8 {[%emt 0:00:22]} 20. e4 {[%emt 0:01:02]} Nd7 {[%emt 0:01:08]} 21. Bg4 {[%emt 0:02:42]} f5 {[%emt 0:05:39]} 22. exf5 {[%emt 0:02:36]} Bxf5 {[%emt 0:00:07]} 23. Bxf5 {[%emt 0:00:14]} Rxf5 {[%emt 0:00:08]} 24. Ne4 {[%emt 0:00:19]} Nf6 {[%emt 0:03:26]} 25. Nxf6+ {[%emt 0:01:57]} Qxf6 {[%emt 0:00:19]} 26. f3 {[%emt 0:00:34]} Rf8 {[%emt 0:07:24]} 27. Re4 {[%emt 0:02:19]} Qf7 {[%emt 0:02:53]} 28. Qd3 {[%emt 0:01:22]} Qd7 {[%emt 0:02:09]} 29. Rd1 {[%emt 0:02:06]} Bf6 {[%emt 0:02:19]} 30. Kf2 {[%emt 0:05:04]} Bd8 {[%emt 0:00:46]} 31. Ke2 {[%emt 0:00:10]} a6 {[%emt 0:05:34]} 32. Bg1 {[%emt 0:04:36]} Rf4 {[%emt 0:03:19]} 33. Be3 {[%emt 0:01:44]} Rxe4 {[%emt 0:00:13]} 34. Qxe4 {[%emt 0:00:14]} Kg7 {[%emt 0:00:54]} 35. Kd2 {[%emt 0:05:32]} c6 {[%emt 0:04:07]} 36. Kc2 {[%emt 0:03:43]} c5 {[%emt 0:00:17]} 37. b3 {[%emt 0:00:46]} Be7 {[%emt 0:01:06]} 38. Bd2 {[%emt 0:01:52]} Rb8 {[%emt 0:01:47]} 39. Ra1 {[%emt 0:04:41]} b6 {[%emt 0:01:44]} 1/2-1/2

[Event "WTCC-50 2018"]
[Site "Radebeul"]
[Date "2018.07.12"]
[Round "6"]
[White "Titscher, Libor"]
[Black "Weitzer, Steffen"]
[Result "1/2-1/2"]
[ECO "A10"]
[WhiteElo "2306"]
[BlackElo "2288"]
[Annotator "NA"]
[PlyCount "47"]
[EventDate "2018.07.07"]
[EventType "team-tourn"]
[EventCountry "GER"]
[SourceTitle "playchess.com"]
[Source "ChessBase"]
[SourceQuality "1"]
[TimeControl "40/5400+30:1800+30"]

1. c4 {[%emt 0:00:28]} f5 {[%emt 0:00:00]} 2. Nc3 {[%emt 0:00:44]} Nf6 {[%emt 0:00:00]} 3. g3 {[%emt 0:00:25]} e6 {[%emt 0:00:11]} 4. Bg2 {[%emt 0:00:52]} d5 {[%emt 0:00:15]} 5. d4 {[%emt 0:01:25]} c6 {[%emt 0:00:22]} 6. Nf3 {[%emt 0:01:31]} Bd6 {[%emt 0:00:16]} 7. O-O {[%emt 0:01:54]} O-O {[%emt 0:00:20]} 8. b3 {[%emt 0:15:38]} Ne4 {[%emt 0:04:13]} 9. Bb2 {[%emt 0:00:38]} Nd7 {[%emt 0:01:13]} 10. Qc2 {[%emt 0:07:10]} Qf6 {[%emt 0:06:05]} 11. Rad1 {[%emt 0:00:45]} Qh6 {[%emt 0:01:30]} 12. Ne5 {[%emt 0:17:11]} Ndf6 {[%emt 0:10:27]} 13. Bc1 {[%emt 0:03:17]} Qh5 {[%emt 0:04:08]} 14. f3 {[%emt 0:02:54]} Nxc3 {[%emt 0:06:12]} 15. Qxc3 {[%emt 0:00:12]} g5 {[%emt 0:05:07]} 16. Rde1 {[%emt 0:16:44]} h6 {[%emt 0:05:50]} 17. e4 {[%emt 0:04:13]} a5 {[%emt 0:08:01]} 18. a3 {[%emt 0:01:38]} Ra6 {[%emt 0:08:39]} 19. Qc2 {[%emt 0:09:32]} Kg7 {[%emt 0:09:06]} 20. Nd3 {[%emt 0:01:57]} dxe4 {[%emt 0:10:26]} 21. fxe4 {[%emt 0:00:31]} Ng4 {[%emt 0:01:52]} 22. Bf3 {[%emt 0:01:13]} fxe4 {[%emt 0:01:52]} 23. Bxg4 {[%emt 0:03:56]} exd3 {[%emt 0:03:35]} 24. Qd1 {[%emt 0:02:07]} 1/2-1/2

[Event "WTCC-50 2018"]
[Site "Radebeul"]
[Date "2018.07.12"]
[Round "6"]
[White "Lewis, Andrew P"]
[Black "Penzold, Andreas"]
[Result "0-1"]
[ECO "A43"]
[WhiteElo "2298"]
[BlackElo "2389"]
[Annotator "NA"]
[PlyCount "72"]
[EventDate "2018.07.07"]
[EventType "team-tourn"]
[EventCountry "GER"]
[SourceTitle "playchess.com"]
[Source "ChessBase"]
[SourceQuality "1"]
[TimeControl "40/5400+30:1800+30"]

1. c4 {[%emt 0:00:00]} g6 {[%emt 0:00:00]} 2. Nc3 {[%emt 0:00:18]} Bg7 {[%emt 0:00:58]} 3. d4 {[%emt 0:00:19]} c5 {[%emt 0:00:23]} 4. d5 {[%emt 0:01:13]} Bxc3+ {[%emt 0:01:01]} 5. bxc3 {[%emt 0:00:15]} f5 {[%emt 0:00:09]} 6. e4 {[%emt 0:00:17]} fxe4 {[%emt 0:00:21]} 7. f3 {[%emt 0:00:15]} e5 {[%emt 0:00:37]} 8. dxe6 {[%emt 0:09:22]} Nc6 {[%emt 0:10:46]} 9. Ne2 {[%emt 0:19:52]} exf3 {[%emt 0:24:19]} 10. Ng3 {[%emt 0:00:16]} Qf6 {[%emt 0:00:22]} 11. Qxf3 {[%emt 0:02:49]} Qxf3 {[%emt 0:01:30]} 12. gxf3 {[%emt 0:02:32]} dxe6 {[%emt 0:01:18]} 13. Ne4 {[%emt 0:02:08]} b6 {[%emt 0:01:12]} 14. Bg5 {[%emt 0:06:43]} h6 {[%emt 0:06:11]} 15. Bh4 {[%emt 0:00:59]} Nge7 {[%emt 0:07:21]} 16. Nd6+ {[%emt 0:04:56]} Kf8 {[%emt 0:01:49]} 17. f4 {[%emt 0:02:43]} Ba6 {[%emt 0:15:36]} 18. O-O-O {[%emt 0:12:23]} Na5 {[%emt 0:03:52]} 19. Nb5 {[%emt 0:11:19]} Nf5 {[%emt 0:03:25]} 20. Nc7 {[%emt 0:07:16]} Nxh4 {[%emt 0:02:28]} 21. Bh3 {[%emt 0:05:21]} Bxc4 {[%emt 0:05:20]} 22. Nxa8 {[%emt 0:02:22]} Ke7 {[%emt 0:00:10]} 23. Nc7 {[%emt 0:03:57]} Rc8 {[%emt 0:00:18]} 24. Nxe6 {[%emt 0:01:18]} Bxe6 {[%emt 0:00:17]} 25. Bxe6 {[%emt 0:01:32]} Kxe6 {[%emt 0:00:07]} 26. Rhe1+ {[%emt 0:00:06]} Kf5 {[%emt 0:00:52]} 27. Re5+ {[%emt 0:02:15]} Kxf4 {[%emt 0:00:54]} 28. Rde1 {[%emt 0:00:38]} Nf5 {[%emt 0:00:37]} 29. Re6 {[%emt 0:00:16]} Rc6 {[%emt 0:01:02]} 30. Re8 {[%emt 0:00:20]} h5 {[%emt 0:01:14]} 31. h4 {[%emt 0:00:33]} Rd6 {[%emt 0:00:31]} 32. Rf1+ {[%emt 0:00:33]} Kg3 {[%emt 0:00:18]} 33. Re4 {[%emt 0:00:48]} Nxh4 {[%emt 0:03:41]} 34. Re3+ {[%emt 0:00:31]} Kg2 {[%emt 0:00:22]} 35. Rfe1 {[%emt 0:00:31]} Nf3 {[%emt 0:00:21]} 36. R1e2+ {[%emt 0:00:28]} Kg3 {[%emt 0:00:09]} 0-1

[Event "WTCC-50 2018"]
[Site "Radebeul"]
[Date "2018.07.12"]
[Round "6"]
[White "Denk, Adolf"]
[Black "Chan, Peng Kong"]
[Result "1/2-1/2"]
[ECO "D30"]
[WhiteElo "2262"]
[BlackElo "2158"]
[Annotator "NA"]
[PlyCount "49"]
[EventDate "2018.07.07"]
[EventType "team-tourn"]
[EventCountry "GER"]
[SourceTitle "playchess.com"]
[Source "ChessBase"]
[SourceQuality "1"]
[TimeControl "40/5400+30:1800+30"]

1. c4 {[%emt 0:00:00]} e6 {[%emt 0:02:41]} 2. Nf3 {[%emt 0:00:00]} Nf6 {[%emt 0:00:26]} 3. d4 {[%emt 0:00:10]} d5 {[%emt 0:02:41]} 4. Bg5 {[%emt 0:02:53]} Bb4+ {[%emt 0:05:39]} 5. Nc3 {[%emt 0:03:14]} Nbd7 {[%emt 0:04:50]} 6. e3 {[%emt 0:06:23]} c5 {[%emt 0:00:31]} 7. Bxf6 {[%emt 0:22:36]} Nxf6 {[%emt 0:04:41]} 8. cxd5 {[%emt 0:02:33]} exd5 {[%emt 0:00:51]} 9. Bb5+ {[%emt 0:01:56]} Bd7 {[%emt 0:03:17]} 10. Bxd7+ {[%emt 0:06:12]} Qxd7 {[%emt 0:03:57]} 11. dxc5 {[%emt 0:08:27]} O-O {[%emt 0:08:34]} 12. Qb3 {[%emt 0:02:40]} Bxc5 {[%emt 0:09:04]} 13. Rd1 {[%emt 0:04:17]} Rfd8 {[%emt 0:00:48]} 14. O-O {[%emt 0:00:43]} Qe6 {[%emt 0:12:06]} 15. Ne2 {[%emt 0:05:12]} Qb6 {[%emt 0:01:04]} 16. Qxb6 {[%emt 0:00:39]} Bxb6 {[%emt 0:00:07]} 17. Rc1 {[%emt 0:05:45]} Rac8 {[%emt 0:00:15]} 18. Rfd1 {[%emt 0:05:21]} g6 {[%emt 0:00:51]} 19. Kf1 {[%emt 0:01:59]} Kf8 {[%emt 0:02:31]} 20. Rxc8 {[%emt 0:01:14]} Rxc8 {[%emt 0:00:06]} 21. Nc3 {[%emt 0:00:11]} Rd8 {[%emt 0:00:40]} 22. Ke2 {[%emt 0:00:47]} Ke7 {[%emt 0:01:01]} 23. h3 {[%emt 0:04:14]} h5 {[%emt 0:00:41]} 24. Rd3 {[%emt 0:01:04]} a6 {[%emt 0:03:57]} 25. Na4 {[%emt 0:04:48]} 1/2-1/2

[Event "WTCC-50 2018"]
[Site "Radebeul"]
[Date "2018.07.12"]
[Round "6"]
[White "Schoene, Ralf"]
[Black "Page, Mark E"]
[Result "1/2-1/2"]
[ECO "E68"]
[WhiteElo "2256"]
[BlackElo "2139"]
[Annotator "NA"]
[PlyCount "114"]
[EventDate "2018.07.07"]
[EventType "team-tourn"]
[EventCountry "GER"]
[SourceTitle "playchess.com"]
[Source "ChessBase"]
[SourceQuality "1"]
[TimeControl "40/5400+30:1800+30"]

1. d4 {[%emt 0:00:00]} Nf6 {[%emt 0:00:00]} 2. c4 {[%emt 0:00:00]} g6 {[%emt 0:00:00]} 3. g3 {[%emt 0:00:00]} Bg7 {[%emt 0:00:05]} 4. Bg2 {[%emt 0:00:00]} O-O {[%emt 0:00:37]} 5. Nc3 {[%emt 0:00:05]} d6 {[%emt 0:00:06]} 6. Nf3 {[%emt 0:00:06]} Nbd7 {[%emt 0:00:48]} 7. O-O {[%emt 0:00:16]} e5 {[%emt 0:01:30]} 8. e4 {[%emt 0:00:26]} exd4 {[%emt 0:01:33]} 9. Nxd4 {[%emt 0:00:16]} Re8 {[%emt 0:00:11]} 10. h3 {[%emt 0:01:50]} a6 {[%emt 0:00:37]} 11. Re1 {[%emt 0:03:01]} Rb8 {[%emt 0:00:11]} 12. Be3 {[%emt 0:11:11]} Ne5 {[%emt 0:16:36]} 13. b3 {[%emt 0:01:46]} c5 {[%emt 0:05:01]} 14. Nde2 {[%emt 0:01:34]} b5 {[%emt 0:02:06] E68: King's Indian: Fianchetto: 6...Nbd7 7 0-0 e5 8 e4} 15. cxb5 {[%emt 0:01:01]} (15. f4 Ned7 16. Qxd6 b4 17. e5 bxc3 18. exf6 Rxe3 19. fxg7 Rb6 20. Qd1 Rbe6 21. Kf2 Qf6 22. Qc2 Re8 23. Rad1 Qe7 24. Rd3 Nf6 25. Rxc3 Bxh3 26. Qd2 Ne4+ {0-1 (26) Wheeler,C (2407)-Bachmann,A (2653) Philadelphia 2017}) 15... axb5 {[%emt 0:00:06]} 16. Qc2 {[%emt 0:03:31]} b4 {[%emt 0:03:29]} 17. Na4 {[%emt 0:01:20]} Bb7 {[%emt 0:07:49]} 18. Rad1 {[%emt 0:03:02]} Qe7 {[%emt 0:02:16]} 19. f3 {[%emt 0:07:39]} Rec8 $146 {[%emt 0:13:02]} ({Predecessor:} 19... Bc6 20. Nb2 Ra8 21. Nc1 Nh5 22. Bf2 {0-1 (39) Ivanov,T (2435)-Belikov,V (2450) Moscow 1994}) 20. Bf2 {[%emt 0:07:28]} Bc6 {[%emt 0:05:38]} 21. Nb2 {[%emt 0:04:00]} Ra8 {[%emt 0:04:52]} 22. Nc1 {[%emt 0:01:17]} Ne8 {[%emt 0:07:40]} 23. f4 {[%emt 0:03:02]} Nd7 {[%emt 0:01:40]} 24. Nc4 {[%emt 0:02:15]} Bc3 {[%emt 0:01:20]} 25. Re2 {[%emt 0:01:06]} Rab8 {[%emt 0:01:17]} 26. Qd3 {[%emt 0:06:25]} Bb5 {[%emt 0:04:57]} 27. a4 {[%emt 0:03:08]} Bxc4 {[%emt 0:02:48]} 28. Qxc4 {[%emt 0:01:08]} Nb6 {[%emt 0:01:29]} 29. Qa6 {[%emt 0:01:28]} Rc7 {[%emt 0:03:49]} 30. Rc2 {[%emt 0:14:12]} Ra7 {[%emt 0:04:18]} 31. Qd3 {[%emt 0:03:28]} c4 {[%emt 0:02:33]} 32. bxc4 {[%emt 0:00:23]} Rxa4 {[%emt 0:00:13]} 33. Ne2 {[%emt 0:00:51]} Bf6 {[%emt 0:03:54]} 34. Qb3 {[%emt 0:01:03]} Qa7 {[%emt 0:02:40]} 35. Nd4 {[%emt 0:04:28]} Ra1 {[%emt 0:00:22]} 36. Rcc1 {[%emt 0:04:58]} Rxc1 {[%emt 0:00:22]} 37. Rxc1 {[%emt 0:00:02]} Qa3 {[%emt 0:01:34]} 38. Qd1 {[%emt 0:01:13]} Bxd4 {[%emt 0:00:38]} 39. Bxd4 {[%emt 0:00:12]} Qxg3 {[%emt 0:00:10]} 40. Qd2 {[%emt 0:01:24]} Na4 {[%emt 0:01:06]} 41. e5 {[%emt 0:32:01]} Nc3 {[%emt 0:03:04]} 42. Bf2 {[%emt 0:00:00]} Ne4 {[%emt 0:00:34]} 43. Bxg3 {[%emt 0:00:00]} Nxd2 {[%emt 0:00:05]} 44. Be1 {[%emt 0:00:00]} Nb3 {[%emt 0:01:18]} 45. Rb1 {[%emt 0:00:00]} Na5 {[%emt 0:03:59]} 46. Bd5 {[%emt 0:00:00]} dxe5 {[%emt 0:01:23]} 47. fxe5 {[%emt 0:00:00]} Nc7 {[%emt 0:10:53]} 48. Rxb4 {[%emt 0:00:00]} Rxb4 {[%emt 0:00:40]} 49. Bxb4 {[%emt 0:00:00]} Nb3 {[%emt 0:00:10]} 50. Kf2 {[%emt 0:00:00]} Ne6 {[%emt 0:02:57]} 51. Bxe6 {[%emt 0:00:00]} ({Better is} 51. Ke3 $16) 51... fxe6 {[%emt 0:00:00]} 52. Ke3 {[%emt 0:00:00]} Kf7 {[%emt 0:00:33]} 53. Kd3 {[%emt 0:00:00]} Ke8 {[%emt 0:00:21]} 54. c5 {[%emt 0:00:00]} Kd7 {[%emt 0:00:44]} 55. Kc4 Nc1 56. Kb5 Nd3 57. c6+ Kc8 $11 1/2-1/2